bitfinex/quotes_SOLUSD_20251007
["timestamp","ask_amount","ask_price","bid_price","bid_amount"]
[1759879907124,1.38361914,221.02,221.0,32.8]
[1759879907309,1.38361914,221.03,221.0,32.8]
[1759879907923,1.38361914,221.04,221.0,32.8]
[1759879908142,1.38361914,221.04,221.0,33.52]
[1759879909015,1.38361914,221.02,221.0,33.52]
[1759879909198,1.38361914,221.03,221.0,33.52]
[1759879909803,1.38361914,221.03,221.0,32.8]
[1759879910004,28.28579941,221.06,221.01,0.72]
[1759879910198,22.18361914,221.06,221.02,0.72]
[1759879910424,26.70728454,221.06,221.0,32.8]
[1759879910730,26.70728454,221.06,221.02,0.72]
[1759879915230,7.49826763,221.05,221.02,0.72]
[1759879915424,4.52402156,221.05,221.0,33.52]
[1759879915731,5.9076407,221.05,221.01,0.72]
[1759879915931,5.9076407,221.05,221.02,0.72]
[1759879916437,4.52244,221.12,221.04,10.87647521]
[1759879916730,8.88217658,221.12,221.05,33.5]
[1759879916934,8.88217658,221.12,221.06,0.72]
[1759879917119,1.38361914,221.11,221.06,0.72]
[1759879917318,5.90645948,221.1,221.05,32.78]
[1759879917629,25.15973658,221.11,221.07,0.66]
[1759879917935,2.97611744,221.1,221.07,0.66]
[1759879919139,8.88270798,221.1,221.07,0.66]
[1759879919316,4.35973658,221.1,221.05,32.78]
[1759879919639,1.38361914,221.1,221.06,0.66]
[1759879919823,3.44611744,221.13,221.05,32.78]
[1759879919824,1.38361914,221.11,221.05,32.78]
[1759879920136,4.35973658,221.11,221.07,0.66]
[1759879920339,2.97611744,221.1,221.07,0.66]
[1759879920506,4.35973658,221.1,221.05,32.78]
[1759879920713,4.35973658,221.1,221.06,0.66]
[1759879921120,4.52304491,221.09,221.06,0.66]
[1759879921421,5.90648797,221.1,221.05,32.78]
[1759879921617,5.90648797,221.1,221.06,0.66]
[1759879921841,1.38361914,221.07,221.05,23.46]
[1759879922135,22.18361914,221.1,221.06,0.66]
[1759879922339,1.38361914,221.1,221.06,0.66]
[1759879922538,1.38361914,221.09,221.05,102.66]
[1759879922747,1.38361914,221.09,221.05,103.32]
[1759879923034,4.99243125,221.12,221.06,0.66]
[1759879923341,1.38361914,221.09,221.06,79.2]
[1759879923507,1.38361914,221.09,221.06,79.86]
[1759879924321,1.38361914,221.1,221.07,0.66]
[1759879925316,5.90666327,221.1,221.07,0.66]
[1759879925514,5.90666327,221.1,221.06,79.2]
[1759879925515,1.38361914,221.09,221.06,79.2]
[1759879925932,22.18361914,221.07,220.98,0.66]
[1759879926134,1.38361914,221.02,220.99,32.76]
[1759879926340,1.38361914,221.02,220.99,33.42]
[1759879926540,1.38361914,221.03,220.99,33.42]
[1759879926930,0.47,221.06,220.99,33.42]
[1759879926931,1.38361914,221.02,220.99,33.42]
[1759879927128,1.38361914,221.01,220.99,33.42]
[1759879928440,1.38361914,221.01,220.95,0.66]
[1759879928441,1.38361914,221.0,220.95,0.66]
[1759879928647,1.38361914,220.99,220.96,33.42]
[1759879928839,4.52468782,221.01,220.96,33.42]
[1759879928840,1.38361914,221.0,220.96,33.42]
[1759879929334,20.8,221.07,220.96,33.42]
[1759879929335,5.90891554,220.98,220.96,32.76]
[1759879929529,1.85361914,220.97,220.9,0.66]
[1759879929730,1.38361914,220.94,220.91,32.76]
[1759879929935,1.38361914,220.96,220.92,0.66]
[1759879930146,0.47,220.96,220.88,12.92009435]
[1759879930327,1.38361914,220.95,220.89,33.42]
[1759879931022,1.38361914,220.95,220.9,0.66]
[1759879931225,5.90966974,220.95,220.91,0.66]
[1759879931448,1.38361914,220.94,220.91,0.66]
[1759879932337,5.9097559,220.94,220.91,0.66]
[1759879932553,20.8,220.98,220.89,37.28712699]
[1759879932755,0.47,221.02,220.92,0.66]
[1759879932922,1.38361914,220.99,220.93,32.76]
[1759879933143,1.38361914,220.99,220.93,33.42]
[1759879933355,2.98878189,221.03,220.94,0.66]
[1759879933552,1.38361914,221.0,220.94,0.66]
[1759879934049,1.38361914,221.0,220.94,5.18603829]
[1759879934050,5.90856893,221.0,220.94,5.18603829]
[1759879934371,5.90856893,221.0,220.95,0.66]
[1759879934548,1.38361914,220.99,220.96,0.66]
[1759879934751,1.38361914,220.99,220.97,32.76]
[1759879936656,5.90873058,220.99,220.97,32.76]
[1759879936854,5.90873058,220.99,220.97,33.42]
[1759879937368,5.90873058,220.99,220.97,32.76]
[1759879937860,5.90873058,220.99,220.95,0.66]
[1759879938164,5.90873058,220.99,220.96,0.66]
[1759879938363,5.90873058,220.99,220.97,32.74]
[1759879938566,1.38361914,220.98,220.97,32.74]
[1759879938947,4.52511144,220.99,220.97,32.74]
[1759879938948,5.90873058,220.99,220.97,32.74]
[1759879940748,5.90873058,220.99,220.97,33.4]
[1759879941755,5.90873058,220.99,220.97,112.6]
[1759879942454,5.90873058,220.99,220.97,111.94]
[1759879943068,5.90873058,220.99,220.97,112.6]
[1759879943453,5.90873058,220.99,220.97,111.94]
[1759879943652,1.38361914,220.98,220.97,111.94]
[1759879943967,1.38361914,221.0,220.97,112.6]
[1759879944172,1.38361914,221.0,220.98,0.66]
[1759879944468,4.52411676,221.04,220.97,111.94]
[1759879944676,2.99414048,221.04,220.99,0.66]
[1759879944851,20.8,221.05,220.99,0.66]
[1759879944852,22.18361914,221.05,221.0,32.74]
[1759879945054,15.83144869,221.08,221.01,0.66]
[1759879945371,20.8,221.05,221.01,0.66]
[1759879945598,25.32392922,221.05,221.01,0.66]
[1759879945879,4.52392922,221.05,221.02,0.66]
[1759879946052,4.52392922,221.05,221.03,32.74]
[1759879946255,4.52392922,221.05,221.03,33.4]
[1759879946770,5.90727833,221.06,221.04,0.66]
[1759879947972,5.90727833,221.06,221.03,32.74]
[1759879947973,2.99493958,221.07,221.05,0.69]
[1759879948175,4.52325033,221.08,221.06,0.69]
[1759879948355,4.52325033,221.08,221.07,33.43]
[1759879948758,4.52325033,221.08,221.07,32.74]
[1759879948956,4.52304965,221.09,221.07,32.74]
[1759879949381,1.38361914,221.08,221.07,32.74]
[1759879949874,5.90686864,221.08,221.07,32.74]
[1759879950456,4.5232495,221.08,221.07,32.74]
[1759879950657,2.99493958,221.1,221.07,33.43]
[1759879950982,2.99493958,221.13,221.08,0.69]
[1759879951195,2.99493958,221.13,221.11,1.38361914]
[1759879951480,8.09156859,221.14,221.12,34.79361914]
[1759879951684,8.09156859,221.14,221.13,0.69]
[1759879953652,1.38361914,221.19,221.13,0.69]
[1759879953875,4.52120444,221.18,221.13,0.69]
[1759879954075,4.52120444,221.18,221.14,32.72]
[1759879954278,1.38361914,221.16,221.11,0.69]
[1759879954473,4.52120444,221.18,221.12,34.79361914]
[1759879954666,4.52120444,221.18,221.13,0.69]
[1759879954860,1.38361914,221.19,221.14,0.69]
[1759879955063,37.49198169,221.21,221.14,2.07361914]
[1759879955276,22.18361914,221.21,221.15,0.69]
[1759879955475,5.90447627,221.2,221.16,32.72]
[1759879955871,5.90447627,221.2,221.17,0.69]
[1759879956066,1.38361914,221.18,221.11,0.69]
[1759879956376,1.38361914,221.16,221.13,32.72]
[1759879956583,1.38361914,221.17,221.14,32.72]
[1759879956881,1.38361914,221.17,221.15,32.72]
[1759879957577,4.52161331,221.16,221.15,32.72]
[1759879959082,5.90523245,221.16,221.15,32.72]
[1759879959388,4.52161331,221.16,221.15,32.72]
[1759879960068,5.90523245,221.16,221.15,32.72]
[1759879960265,4.52161331,221.16,221.15,32.72]
[1759879962087,4.52161331,221.16,221.15,32.7]
[1759879965094,2.1599114,221.17,221.15,32.7]
[1759879965277,2.1599114,221.17,221.12,0.69]
[1759879965476,2.1599114,221.17,221.15,32.7]
[1759879965684,2.1599114,221.16,221.15,32.7]
[1759879966484,44.00316943,221.26,221.15,32.7]
[1759879966485,32.57112354,221.22,221.15,33.39]
[1759879966803,2.1599114,221.2,221.15,33.39]
[1759879966965,2.1599114,221.19,221.16,0.69]
[1759879967168,4.52059129,221.21,221.16,0.69]
[1759879967368,2.1599114,221.19,221.16,0.69]
[1759879967789,4.52120444,221.18,221.17,0.69]
[1759879968089,2.1599114,221.23,221.17,0.69]
[1759879968469,2.1599114,221.24,221.17,0.69]
[1759879968784,12.48686498,221.25,221.18,10.87647521]
[1759879968966,2.1599114,221.22,221.19,32.68]
[1759879969168,2.1599114,221.22,221.19,33.37]
[1759879969390,2.1599114,221.21,221.19,32.68]
[1759879969773,4.52079566,221.2,221.19,32.68]
[1759879970190,4.52079566,221.2,221.12,20.8]
[1759879970191,6.68070706,221.2,221.1,2.1599114]
[1759879970380,2.1599114,221.18,221.14,0.69]
[1759879971096,0.47,221.18,221.15,32.68]
[1759879971294,15.82278481,221.2,221.15,32.68]
[1759879971295,2.1599114,221.16,221.15,32.68]
[1759879971814,4.52140887,221.17,221.15,33.37]
[1759879971974,2.1599114,221.16,221.15,32.68]
[1759879972673,6.68132027,221.17,221.15,32.68]
[1759879972884,4.52140887,221.17,221.15,33.37]
[1759879973118,4.52140887,221.17,221.16,0.69]
[1759879973796,4.52140887,221.17,221.15,32.68]
[1759879973996,4.52140887,221.17,221.15,33.37]
[1759879974510,4.52140887,221.17,221.15,112.57]
[1759879975415,4.52140887,221.17,221.15,111.88]
[1759879975715,4.52140887,221.17,221.15,79.2]
[1759879975899,2.6299114,221.16,221.1,0.69]
[1759879976102,2.1599114,221.13,221.11,32.68]
[1759879976621,4.52243125,221.12,221.11,33.37]
[1759879979125,2.1599114,221.16,221.11,33.37]
[1759879979324,2.1599114,221.16,221.12,0.71]
[1759879979533,2.1599114,221.13,221.07,0.71]
[1759879979712,2.1599114,221.11,221.1,32.66]
[1759879979913,2.1599114,221.13,221.1,32.66]
[1759879980637,2.1599114,221.13,221.1,33.37]
[1759879981043,4.52202224,221.14,221.11,0.71]
[1759879981210,2.1599114,221.12,221.06,0.71]
[1759879981416,2.1599114,221.12,221.07,32.66]
[1759879981637,2.1599114,221.12,221.08,0.71]
[1759879982014,2.1599114,221.12,221.07,32.66]
[1759879982015,2.1599114,221.11,221.07,32.66]
[1759879982411,2.1599114,221.13,221.08,0.71]
[1759879982615,2.1599114,221.13,221.07,32.66]
[1759879982616,15.82707786,221.14,221.09,0.71]
[1759879982810,17.98698926,221.14,221.1,0.71]
[1759879983123,17.98698926,221.14,221.11,0.71]
[1759879983328,25.32202224,221.14,221.12,0.71]
[1759879983916,20.8,221.17,221.13,0.71]
[1759879984220,20.8,221.17,221.12,32.66]
[1759879984428,2.1599114,221.22,221.14,0.71]
[1759879984613,4.52018261,221.23,221.14,0.71]
[1759879984940,4.52018261,221.23,221.15,2.1599114]
[1759879985116,4.52018261,221.23,221.16,0.71]
[1759879985317,4.52018261,221.23,221.17,32.66]
[1759879985515,4.52018261,221.23,221.17,33.37]
[1759879985516,2.1599114,221.22,221.17,33.37]
[1759879985712,2.1599114,221.22,221.18,0.71]
[1759879985920,2.1599114,221.22,221.19,0.71]
[1759879986235,2.1599114,221.22,221.14,2.1599114]
[1759879986426,2.1599114,221.22,221.09,22.18372778]
[1759879986427,2.1599114,221.18,221.15,0.71]
[1759879986627,2.1599114,221.18,221.16,0.71]
[1759879986832,2.1599114,221.18,221.13,33.37]
[1759879987034,6.68154304,221.16,221.14,0.71]
[1759879987334,11.30238352,221.2,221.14,0.71]
[1759879987335,6.68091144,221.19,221.14,0.71]
[1759879987711,6.68091144,221.19,221.13,32.66]
[1759879987712,6.68091144,221.19,221.15,0.71]
[1759879987924,4.52100004,221.19,221.16,0.71]
[1759879988134,4.52100004,221.19,221.17,0.71]
[1759879988340,25.32038569,221.23,221.18,32.66]
[1759879988539,2.1599114,221.19,221.13,0.71]
[1759879988735,2.1599114,221.15,221.06,0.71]
[1759879988930,2.1599114,221.13,221.07,32.66]
[1759879989130,4.52243125,221.12,221.07,33.37]
[1759879989329,4.52243125,221.12,221.08,0.71]
[1759879989826,4.52243125,221.12,221.09,0.71]
[1759879990738,2.1599114,221.11,221.06,0.71]
[1759879990940,2.1599114,221.11,221.09,32.66]
[1759879992837,4.52284034,221.1,221.09,32.66]
[1759879995842,16.29994119,221.1,221.06,32.66]
[1759879996045,2.1599114,221.08,221.06,32.66]
[1759879996945,2.1599114,221.08,221.02,0.71]
[1759879997147,2.1599114,221.08,221.03,32.64]
[1759879997360,2.1599114,221.06,221.03,33.35]
[1759879997532,4.52386337,221.05,221.03,33.35]
[1759879998752,4.52386337,221.05,221.04,32.64]
[1759879999450,15.83352181,221.05,220.95,10.87647521]
[1759879999653,22.9599114,221.02,220.96,32.64]
[1759879999958,2.1599114,221.0,220.97,0.71]
[1759880000163,2.1599114,221.0,220.98,0.71]
[1759880000852,22.9599114,221.02,220.99,0.71]
[1759880001046,22.9599114,221.02,220.96,32.64]
[1759880001257,22.9599114,221.02,220.97,0.71]
[1759880001649,27.48451616,221.02,220.97,0.71]
[1759880002030,2.1599114,221.04,220.97,0.71]
[1759880002649,2.1599114,221.04,220.98,10.87647521]
[1759880002844,6.68404577,221.04,220.99,0.71]
[1759880003039,6.68404577,221.04,221.0,0.71]
[1759880003240,6.68404577,221.04,221.01,33.35]
[1759880004247,6.68404577,221.04,221.01,112.55]
[1759880004432,4.52370766,221.06,221.02,0.71]
[1759880004632,2.1599114,221.05,221.03,0.71]
[1759880004853,22.9599114,221.07,221.03,0.71]
[1759880006062,2.1599114,221.05,221.03,0.71]
[1759880007359,6.6839787,221.05,221.03,0.71]
[1759880009851,4.5240673,221.05,221.03,0.71]
[1759880010044,4.5240673,221.05,221.03,79.91]
[1759880010364,4.5240673,221.05,221.04,32.64]
[1759880012767,6.68359617,221.06,221.04,32.64]
[1759880012951,6.68359617,221.06,221.04,33.32]
[1759880013268,20.8,221.08,221.05,0.68]
[1759880013440,20.8,221.08,221.04,111.84]
[1759880013441,22.9599114,221.09,221.06,0.68]
[1759880013641,22.9599114,221.09,221.07,32.64]
[1759880014262,4.52327283,221.08,221.07,32.64]
[1759880014855,4.52288829,221.1,221.07,33.32]
[1759880015747,4.52288829,221.1,221.08,0.68]
[1759880015948,11.30412228,221.16,221.09,0.68]
[1759880016148,6.68132027,221.17,221.1,32.64]
[1759880016479,2.1599114,221.13,221.05,90.07647521]
[1759880016665,6.68269705,221.11,221.06,33.32]
[1759880016844,4.52222674,221.13,221.07,0.68]
[1759880017040,2.1599114,221.11,221.07,0.68]
[1759880017646,2.1599114,221.11,221.08,0.68]
[1759880017841,2.1599114,221.11,221.09,32.62]
[1759880018068,2.1599114,221.12,221.09,32.62]
[1759880018851,2.1599114,221.1,221.04,4.52388882]
[1759880019163,2.1599114,221.05,220.99,33.3]
[1759880019357,2.1599114,221.01,221.0,32.62]
[1759880020057,6.68459354,221.01,221.0,32.62]
[1759880020567,2.1599114,221.01,220.95,10.87647521]
[1759880020873,32.11065707,221.04,220.94,4.52609186]
[1759880020874,21.27,221.04,220.96,33.3]
[1759880021072,2.1599114,221.02,220.97,0.68]
[1759880021276,2.1599114,221.04,220.97,0.68]
[1759880021454,22.9599114,221.06,220.97,0.68]
[1759880021651,22.9599114,221.06,220.98,10.87647521]
[1759880021962,2.1599114,221.11,221.02,10.87647521]
[1759880022167,27.48274467,221.11,221.03,37.82427272]
[1759880022369,27.48274467,221.11,221.04,0.68]
[1759880022570,2.1599114,221.09,221.04,0.68]
[1759880023276,2.1599114,221.09,221.04,5.20401618]
[1759880023450,2.1599114,221.09,221.05,0.68]
[1759880023651,6.68298179,221.09,221.06,0.68]
[1759880023873,6.68298179,221.09,221.07,32.62]
[1759880024677,22.9599114,221.11,221.07,32.62]
[1759880024880,2.1599114,221.11,221.07,32.62]
[1759880025051,6.68257407,221.11,221.07,32.62]
[1759880025253,6.68257407,221.11,221.08,0.68]
[1759880025875,6.68257407,221.11,221.07,32.62]
[1759880026082,6.68257407,221.11,221.07,33.3]
[1759880026273,27.48257407,221.11,221.07,33.3]
[1759880027275,5.90619153,221.1,221.07,33.3]
[1759880027777,4.52296167,221.1,221.07,33.3]
[1759880027965,5.90619153,221.1,221.07,33.3]
[1759880028167,5.90619153,221.1,221.08,0.68]
[1759880028851,5.90619153,221.1,221.07,32.62]
[1759880029053,5.90619153,221.1,221.08,0.68]
[1759880029657,5.90619153,221.1,221.07,32.62]
[1759880029954,5.90619153,221.1,221.07,33.3]
[1759880030154,5.90619153,221.1,221.08,0.68]
[1759880031082,20.8,221.11,221.08,0.68]
[1759880031270,20.8,221.11,221.09,0.68]
[1759880031463,20.8,221.11,221.1,0.68]
[1759880031877,20.8,221.13,221.1,0.68]
[1759880032070,20.8,221.13,221.11,32.62]
[1759880032465,1.38322986,221.12,221.11,32.62]
[1759880033780,5.90566111,221.12,221.11,32.62]
[1759880036688,1.38322986,221.12,221.11,32.62]
[1759880036891,5.90541094,221.14,221.11,33.3]
[1759880037091,5.90541094,221.14,221.11,32.62]
[1759880037287,8.90401492,221.14,221.11,32.62]
[1759880037883,8.90401492,221.14,221.11,33.34]
[1759880038285,5.90541094,221.14,221.11,33.34]
[1759880038489,25.32179171,221.16,221.12,0.72]
[1759880038793,4.3815614,221.15,221.12,0.72]
[1759880039086,4.3815614,221.15,221.11,32.62]
[1759880039396,1.38322986,221.13,221.11,33.34]
[1759880039578,5.90564071,221.13,221.11,32.62]
[1759880039973,5.90564071,221.13,221.02,10.87647521]
[1759880039974,0.47,221.12,221.02,10.87647521]
[1759880040185,1.38322986,221.04,221.03,32.6]
[1759880040385,1.85322986,221.04,220.97,0.72]
[1759880040567,1.38322986,221.01,220.98,32.6]
[1759880040768,0.47,221.03,220.99,32.6]
[1759880040977,1.38322986,221.01,221.0,32.6]
[1759880041470,22.18322986,221.01,221.0,32.6]
[1759880041769,1.38322986,221.01,221.0,32.6]
[1759880043291,5.907912,221.01,221.0,32.6]
[1759880043490,1.38322986,221.01,221.0,32.6]
[1759880043992,1.38322986,221.01,220.97,32.6]
[1759880044163,1.38322986,221.01,220.98,0.72]
[1759880044567,1.38322986,221.01,220.99,0.72]
[1759880044795,22.18322986,221.01,220.99,0.72]
[1759880045574,4.52340638,221.08,221.0,0.72]
[1759880045785,1.38322986,221.05,221.01,32.6]
[1759880046007,1.38322986,221.05,221.02,0.72]
[1759880046188,4.52340638,221.08,221.01,32.6]
[1759880046495,1.38322986,221.05,221.02,0.72]
[1759880046791,1.38322986,221.05,220.94,10.87647521]
[1759880046792,1.38322986,221.03,220.98,33.32]
[1759880047000,1.38322986,221.03,220.99,0.72]
[1759880047179,1.38322986,221.03,221.0,0.72]
[1759880047803,20.8,221.05,221.01,0.72]
[1759880048111,1.38322986,221.03,221.01,0.72]
[1759880048875,1.38322986,221.03,220.98,37.12522433]
[1759880049074,1.38322986,221.03,220.95,4.52591083]
[1759880049288,1.38322986,221.01,220.96,33.32]
[1759880049489,1.38322986,221.01,220.97,0.72]
[1759880049688,1.38322986,221.01,220.98,0.72]
[1759880049992,1.38322986,221.01,220.99,0.72]
[1759880050177,1.38322986,221.01,220.97,0.72]
[1759880050377,20.8,221.01,220.98,0.72]
[1759880050576,1.38322986,221.03,220.99,0.72]
[1759880050782,1.38322986,221.03,221.0,0.72]
[1759880051695,22.18322986,221.03,221.01,0.72]
[1759880051879,1.38322986,221.04,220.99,4.5249997]
[1759880052082,7.51671693,221.05,220.99,4.5249997]
[1759880052281,1.38322986,221.04,220.99,4.5249997]
[1759880052481,1.38322986,221.04,221.0,0.72]
[1759880052701,1.38322986,221.04,221.01,33.32]
[1759880052894,2.99278486,221.05,221.02,0.72]
[1759880053110,1.38322986,221.05,221.03,0.72]
[1759880053280,1.38322986,221.05,221.01,32.6]
[1759880053485,1.38322986,221.05,221.02,0.72]
[1759880053685,1.38322986,221.05,221.03,0.72]
[1759880053993,1.38322986,221.06,221.01,37.124662]
[1759880054199,22.18322986,221.06,221.02,0.72]
[1759880054408,20.8,221.06,221.02,79.92]
[1759880054709,20.8,221.06,221.03,0.72]
[1759880054895,20.8,221.06,221.04,0.72]
[1759880055098,22.18322986,221.06,221.05,0.72]
[1759880055805,22.18322986,221.06,221.05,33.32]
[1759880056009,26.70688859,221.06,221.05,32.6]
[1759880056587,27.17688859,221.06,221.02,79.2]
[1759880056797,22.18322986,221.03,220.96,0.72]
[1759880057007,20.8,221.03,220.97,32.58]
[1759880057315,1.38322986,220.99,220.97,32.58]
[1759880057610,1.38322986,220.99,220.98,32.58]
[1759880058009,1.38322986,220.99,220.98,33.3]
[1759880060001,22.18322986,221.0,220.98,33.3]
[1759880060210,26.70820587,221.0,220.98,33.3]
[1759880060409,22.18322986,221.0,220.98,33.3]
[1759880060602,26.70811919,221.0,220.98,33.3]
[1759880062607,0.47,221.08,220.99,0.72]
[1759880062791,1.38322986,221.04,220.99,79.92]
[1759880063116,1.38322986,221.04,221.0,0.72]
[1759880063300,1.38322986,221.04,221.01,0.72]
[1759880063490,1.38322986,221.04,221.02,32.58]
[1759880063686,1.38322986,221.04,221.02,33.3]
[1759880065420,5.90746097,221.04,221.02,33.3]
[1759880066112,25.32423111,221.04,221.03,0.72]
[1759880066312,26.70746097,221.04,221.03,0.72]
[1759880066809,26.70746097,221.04,221.02,32.58]
[1759880067009,26.70746097,221.04,221.02,33.3]
[1759880071016,20.8,221.04,221.02,33.3]
[1759880071223,1.38322986,221.03,221.02,33.3]
[1759880071420,1.38322986,221.03,221.02,112.5]
[1759880071813,1.85322986,221.03,221.02,79.2]
[1759880072015,1.38322986,221.03,221.02,79.2]
[1759880072197,1.85322986,221.03,221.02,79.2]
[1759880072402,1.38322986,221.03,221.02,79.2]
[1759880073123,1.85322986,221.03,221.02,79.2]
[1759880073310,5.90750258,221.03,221.02,79.2]
[1759880073510,6.37750258,221.03,221.02,79.2]
[1759880074020,4.99427272,221.03,221.02,79.2]
[1759880074318,5.90750258,221.03,221.02,79.2]
[1759880075514,20.8,221.0,220.99,32.58]
[1759880075823,22.18322986,221.0,220.99,33.25]
[1759880076933,4.52509163,220.99,220.91,79.2]
[1759880077127,1.38322986,220.96,220.95,0.67]
[1759880077427,1.38322986,220.96,220.95,32.58]
[1759880077624,7.51991016,220.99,220.95,32.58]
[1759880077815,1.38322986,220.97,220.95,32.58]
[1759880078014,1.38322986,220.97,220.96,0.67]
[1759880079122,5.90873105,220.97,220.96,0.67]
[1759880079316,5.90873105,220.97,220.89,10.87647521]
[1759880079503,1.38322986,220.93,220.9,33.28]
[1759880079707,1.38322986,220.93,220.91,33.28]
[1759880079931,1.38322986,220.92,220.91,33.28]
[1759880080504,4.99550119,220.97,220.91,33.28]
[1759880080505,20.8,220.96,220.91,33.28]
[1759880080710,20.8,220.94,220.92,0.72]
[1759880080921,20.8,220.94,220.91,32.56]
[1759880081133,15.83925418,220.97,220.93,0.72]
[1759880081134,20.8,220.97,220.93,0.72]
[1759880081340,5.90893587,220.96,220.94,0.72]
[1759880081554,5.90893587,220.96,220.94,33.28]
[1759880082532,20.8,220.95,220.94,33.28]
[1759880082731,20.8,220.95,220.94,32.56]
[1759880083715,20.8,220.95,220.94,33.28]
[1759880085048,25.32591083,220.95,220.94,33.28]
[1759880087025,27.4901573,220.95,220.94,33.28]
[1759880087928,2.16424647,220.95,220.94,33.28]
[1759880089849,2.16424647,220.97,220.94,33.28]
[1759880090044,4.52509163,220.99,220.95,0.72]
[1759880091122,2.99795725,221.01,220.95,5.24588945]
[1759880091324,25.96220372,221.01,220.96,0.72]
[1759880091546,2.99795725,221.0,220.96,0.72]
[1759880092221,2.16424647,221.02,220.96,0.72]
[1759880093244,6.6888135,221.02,220.96,5.24558356]
[1759880093560,2.16424647,221.02,220.97,0.72]
[1759880093741,2.16424647,221.02,220.98,32.56]
[1759880094061,2.16424647,220.99,220.95,0.72]
[1759880094262,2.16424647,220.98,220.96,33.28]
[1759880095456,6.68942721,220.99,220.97,0.72]
[1759880095959,9.68726743,221.0,220.98,0.72]
[1759880096260,9.68726743,221.0,220.99,0.72]
[1759880096565,27.48893128,221.01,220.99,0.72]
[1759880099338,27.48893128,221.01,220.96,32.56]
[1759880099649,2.16424647,221.0,220.97,0.71]
[1759880099846,2.16424647,221.0,220.98,0.71]
[1759880100153,6.68915061,221.0,220.98,33.25]
[1759880100653,9.68873505,221.0,220.98,33.25]
[1759880101236,9.68873505,221.0,220.98,32.54]
[1759880101431,5.16383091,221.0,220.99,0.71]
[1759880101758,2.99958444,221.0,220.99,0.71]
[1759880105260,2.99958444,221.0,220.99,79.91]
[1759880106263,7.52447131,221.0,220.99,79.91]
[1759880106459,2.99958444,221.0,220.99,79.2]
[1759880106646,2.99958444,221.0,220.99,79.91]
[1759880107150,25.32471234,221.01,220.99,79.91]
[1759880107348,20.8,221.01,220.99,79.91]
[1759880107549,20.8,221.01,221.0,0.71]
[1759880107756,23.80093915,221.01,221.0,0.71]
[1759880109137,28.32562129,221.01,221.0,0.71]
[1759880109539,42.26989602,221.01,220.91,0.71]
[1759880109744,2.16256938,220.96,220.92,32.52]
[1759880109946,2.16256938,220.96,220.92,33.23]
[1759880110167,2.16256938,220.96,220.93,0.71]
[1759880110356,2.16256938,220.95,220.92,32.52]
[1759880110547,3.00093915,220.98,220.93,0.71]
[1759880110740,3.00093915,220.99,220.93,0.71]
[1759880110946,5.16350853,221.0,220.93,0.71]
[1759880111263,3.00093915,220.99,220.93,11.58647521]
[1759880111461,3.00093915,221.0,220.94,0.71]
[1759880111651,3.00093915,221.0,220.95,37.04589129]
[1759880111965,3.00093915,221.0,220.96,0.71]
[1759880112154,7.52582674,221.0,220.96,0.71]
[1759880112856,3.00093915,221.0,220.97,10.87647521]
[1759880113063,3.00093915,221.02,220.98,33.23]
[1759880113274,3.00093915,221.02,220.99,0.71]
[1759880113977,9.68800889,221.02,220.99,0.71]
[1759880114188,5.16350853,221.01,220.99,0.71]
[1759880114355,5.16350853,221.01,220.98,32.52]
[1759880114556,2.16256938,221.01,220.98,32.52]
[1759880115179,5.16350853,221.01,220.99,0.71]
[1759880116078,3.00093915,221.01,221.0,0.71]